bitfinex/quotes_ETHUSD_20260121
["timestamp","ask_amount","ask_price","bid_price","bid_amount"]
[1768978223337,9.31244234,2980.5,2980.2,0.50885373]
[1768978224234,9.31244234,2980.5,2980.2,1e-08]
[1768978224432,9.31244234,2980.5,2980.1,0.555]
[1768978225428,9.31244234,2980.5,2980.1,1.11]
[1768978226951,9.31244234,2980.5,2980.2,0.002]
[1768978227110,9.31244234,2980.5,2980.1,1.11]
[1768978227847,9.31244234,2980.5,2980.1,1.665]
[1768978230213,9.31244234,2980.5,2980.1,2.22]
[1768978231642,9.31244234,2980.5,2980.1,2e-08]
[1768978231941,10.24368657,2980.5,2980.1,2e-08]
[1768978232516,10.24368657,2980.5,2980.1,0.55500002]
[1768978232714,9.13852126,2980.3,2980.0,1.03043881]
[1768978232925,9.13852126,2980.3,2979.8,1.665]
[1768978233122,9.13852126,2980.1,2979.8,1.665]
[1768978234953,9.13852126,2980.4,2979.9,3.20199092]
[1768978235326,9.13852126,2980.4,2979.8,5.42199092]
[1768978237322,9.13852126,2980.4,2979.9,3.19523898]
[1768978237522,1.48624423,2980.5,2979.9,3.19523898]
[1768978237954,0.555,2980.5,2979.9,3.19523898]
[1768978238850,0.0016,2980.4,2980.1,0.002]
[1768978239047,0.0016,2980.4,2980.2,3.18819773]
[1768978239950,0.0016,2980.4,2980.2,3.74319773]
[1768978241523,0.0016,2980.4,2980.2,0.555]
[1768978241723,0.555,2980.5,2980.2,0.5534]
[1768978242459,0.555,2980.5,2980.2,4.28189128]
[1768978242828,0.555,2980.5,2980.2,1.1084]
[1768978243027,0.64069169,2980.4,2980.2,1.1084]
[1768978243628,0.64069169,2980.4,2980.1,3.17549128]
[1768978243927,9.69352126,2980.5,2980.1,3.17549128]
[1768978244124,9.69272126,2980.5,2980.1,3.17549128]
[1768978244646,14.56403,2980.5,2980.1,3.17549128]
[1768978244850,14.56403,2980.5,2980.1,3.73049128]
[1768978245847,5.42550874,2980.5,2980.1,3.73049128]
[1768978247162,5.42550874,2980.5,2980.1,4.28549128]
[1768978247661,14.61728951,2980.5,2980.1,4.28549128]
[1768978247851,16.07901846,2980.5,2980.1,4.28549128]
[1768978249766,16.07901846,2980.5,2980.1,4.84049128]
[1768978249968,16.07821846,2980.5,2980.1,4.84049128]
[1768978250739,6.88643769,2980.5,2980.1,4.84049128]
[1768978250939,0.001,2980.3,2980.1,4.84049128]
[1768978252472,0.001,2980.3,2980.1,5.39549128]
[1768978254673,0.001,2980.3,2980.2,3.15083589]
[1768978254870,0.001,2980.3,2980.1,2.222]
[1768978255047,0.001,2980.3,2980.1,2.777]
[1768978256501,0.001,2980.3,2980.1,2.82133228]
[1768978257548,0.001,2980.3,2980.1,3.37633228]
[1768978259291,9.19278077,2980.3,2979.9,0.038048]
[1768978259801,9.19178077,2979.9,2979.3,0.03389093]
[1768978260107,4.87130874,2980.0,2979.1,0.58889093]
[1768978260108,14.06308951,2979.5,2979.1,0.58889093]
[1768978260401,14.06308951,2979.5,2978.9,0.10749333]
[1768978260577,14.06308951,2979.5,2979.0,0.10749333]
[1768978260890,9.19178077,2979.4,2979.0,0.10749333]
[1768978261470,9.19178077,2979.4,2978.8,1.667]
[1768978261471,9.74578077,2979.4,2978.8,1.667]
[1768978261666,9.74578077,2979.4,2978.7,1.112]
[1768978261992,9.19178077,2979.2,2978.7,1.112]
[1768978262394,9.19178077,2979.2,2978.7,1.667]
[1768978262585,9.19178077,2979.2,2978.9,0.002]
[1768978264967,9.19178077,2979.2,2978.7,1.667]
[1768978265671,9.19178077,2979.2,2978.7,1.74933168]
[1768978266082,9.19098077,2979.2,2978.7,1.74933168]
[1768978266487,9.19098077,2979.2,2978.7,1.667]
[1768978266886,10.16547885,2979.2,2978.7,1.667]
[1768978267895,10.16547885,2979.2,2978.7,2.222]
[1768978269402,4.87130874,2979.1,2978.6,0.002]
[1768978269588,9.19178077,2979.0,2978.6,0.002]
[1768978270375,9.19178077,2979.3,2978.7,0.04346271]
[1768978271105,9.19178077,2979.3,2978.6,0.62529861]
[1768978271303,9.19178077,2979.1,2978.6,0.62529861]
[1768978272993,0.554,2979.0,2978.6,1.112]
[1768978273192,9.19178077,2978.9,2978.6,1.112]
[1768978273693,9.19178077,2978.9,2978.5,0.555]
[1768978274406,9.19178077,2978.9,2978.5,2e-08]
[1768978274601,9.19178077,2978.9,2978.8,0.002]
[1768978274801,10.65348972,2978.9,2978.5,2e-08]
[1768978274990,10.65348972,2978.9,2978.5,0.00200002]
[1768978275197,10.65348972,2978.9,2978.4,0.555]
[1768978275395,10.65348972,2978.9,2978.4,1.11]
[1768978276603,10.65348972,2978.9,2978.5,0.0016]
[1768978277007,10.65348972,2978.9,2978.5,0.02143869]
[1768978277008,1.46170895,2978.9,2978.5,0.02143869]
[1768978277190,8.9348481,2978.9,2978.5,0.0016]
[1768978277887,8.9348481,2978.9,2978.5,0.5566]
[1768978278482,8.9348481,2978.9,2978.5,0.555]
[1768978278984,8.9348481,2978.7,2978.4,1e-08]
[1768978280579,8.9348481,2978.7,2978.4,0.55500001]
[1768978283224,8.9348481,2978.5,2978.4,1e-08]
[1768978284888,0.554,2978.6,2978.4,1e-08]
[1768978285417,0.554,2978.6,2978.4,0.55500001]
[1768978285788,9.4888481,2978.6,2978.4,0.55500001]
[1768978286215,9.4888481,2978.6,2978.0,0.557]
[1768978286415,8.9348481,2978.4,2978.0,0.557]
[1768978286790,8.9348481,2978.4,2977.8,0.002]
[1768978287125,8.9348481,2978.1,2977.2,0.555]
[1768978287296,8.9348481,2977.9,2977.2,0.555]
[1768978287821,8.9348481,2977.9,2977.5,1.112]
[1768978288394,8.9348481,2977.9,2977.8,0.0016]
[1768978288596,9.88373291,2977.9,2977.5,1.112]
[1768978288820,8.9348481,2977.9,2977.5,1.112]
[1768978290306,8.9348481,2977.9,2977.5,1.667]
[1768978293427,8.9348481,2977.9,2977.5,2.222]
[1768978295907,8.9348481,2977.9,2977.5,2.777]
[1768978296943,8.9348481,2977.9,2977.5,2.7762]
[1768978298312,8.9348481,2977.9,2977.7,0.002]
[1768978299043,8.9348481,2977.9,2977.7,0.0012]
[1768978299618,8.9348481,2977.9,2977.5,3.3312]
[1768978300733,8.9348481,2977.9,2977.5,3.3304]
[1768978300932,8.9348481,2977.9,2977.5,3.8854]
[1768978302245,8.9348481,2977.9,2977.5,3.8846]
[1768978303551,8.9348481,2977.9,2977.5,4.4396]
[1768978304651,8.9348481,2977.7,2977.5,4.4396]
[1768978305827,8.9348481,2977.7,2977.5,4.9946]
[1768978306866,8.9348481,2977.7,2977.5,1.6311648]
[1768978308568,8.9348481,2977.7,2977.5,0.555]
[1768978308775,9.40932649,2977.6,2977.4,1e-08]
[1768978308971,9.40932649,2977.6,2977.1,0.555]
[1768978308972,8.85532649,2977.5,2977.1,0.555]
[1768978309130,8.85532649,2977.2,2976.7,1e-08]
[1768978309454,4.87832854,2977.3,2976.7,1e-08]
[1768978309455,8.85532649,2977.0,2976.7,1e-08]
[1768978310967,8.85532649,2977.0,2976.7,0.55500001]
[1768978311174,4.87832854,2977.6,2976.8,0.42199201]
[1768978311175,8.85532649,2977.6,2976.8,0.42199201]
[1768978311324,0.554,2977.6,2976.9,0.38393729]
[1768978311828,9.40932649,2977.6,2976.9,0.38393729]
[1768978312327,0.001,2977.7,2976.9,0.37403215]
[1768978312528,0.554,2977.6,2977.1,0.364813]
[1768978312929,9.40932649,2977.6,2977.1,0.364813]
[1768978313235,8.85532649,2977.6,2977.1,0.364813]
[1768978313444,8.85532649,2977.6,2977.2,0.364813]
[1768978316059,8.85532649,2977.6,2977.2,0.919813]
[1768978318261,8.85532649,2977.6,2977.2,1.11]
[1768978318676,9.41032649,2977.7,2977.3,0.30383937]
[1768978319030,8.85632649,2977.7,2977.3,0.83661825]
[1768978319249,9.41032649,2977.7,2977.3,0.83661825]
[1768978319430,9.41032649,2977.7,2977.3,0.30383937]
[1768978320358,0.555,2977.7,2977.3,0.30383937]
[1768978320563,0.555,2977.7,2977.4,0.28329641]
[1768978321061,0.554,2978.1,2977.5,0.28329641]
[1768978322761,8.85532649,2978.4,2977.6,0.26300827]
[1768978322953,0.554,2978.3,2977.6,0.26300827]
[1768978323142,0.554,2978.3,2977.7,0.26300827]
[1768978323337,0.001,2977.9,2977.7,0.26300827]
[1768978323539,0.554,2978.3,2977.8,0.25294385]
[1768978324052,0.001,2978.5,2977.8,0.25294385]
[1768978324261,0.555,2978.5,2977.8,0.25294385]
[1768978324667,9.41032649,2978.5,2977.8,0.25294385]
[1768978325741,9.41032649,2978.5,2977.9,0.23300489]
[1768978327882,0.001,2978.5,2978.0,0.21327693]
[1768978328174,0.001,2978.5,2978.1,0.21327693]
[1768978328489,0.554,2978.9,2978.1,0.21327693]
[1768978328951,8.85532649,2979.0,2978.4,0.20349703]
[1768978328952,0.554,2979.0,2978.4,0.20349703]
[1768978329145,8.85532649,2979.2,2978.4,0.20349703]
[1768978329347,4.87832854,2979.9,2978.7,0.20349703]
[1768978329348,9.40932649,2979.1,2978.7,0.20349703]
[1768978329561,9.40932649,2979.1,2978.5,0.19378912]
[1768978330640,9.40932649,2979.1,2978.5,0.74878912]
[1768978330847,8.85532649,2978.9,2977.9,0.555]
[1768978331187,8.85532649,2978.7,2977.9,0.555]
[1768978331342,8.85532649,2978.5,2977.9,0.555]
[1768978331544,8.85532649,2978.3,2977.9,0.555]
[1768978333474,8.85532649,2978.3,2977.9,1.11]
[1768978333670,8.85532649,2978.1,2977.9,1.11]
[1768978333976,0.88553265,2978.0,2977.9,1.11]
[1768978334150,8.85532649,2978.1,2977.9,1.11]
[1768978335674,8.85532649,2978.1,2977.9,1.665]
[1768978337065,8.85532649,2978.1,2977.9,1e-08]
[1768978338278,8.85532649,2978.1,2977.9,0.55500001]
[1768978338487,8.85532649,2978.1,2977.8,1e-08]
[1768978338775,8.82958502,2977.9,2977.8,1e-08]
[1768978340685,8.82958502,2977.9,2977.8,0.55500001]
[1768978341064,8.82958502,2977.9,2977.8,0.26324259]
[1768978341261,8.82958502,2977.9,2977.6,0.555]
[1768978343550,8.82958502,2977.9,2977.6,1.11]
[1768978345657,8.82958502,2977.9,2977.6,1.665]
[1768978346960,8.82958502,2978.1,2977.7,0.0103652]
[1768978347187,9.38358502,2978.2,2977.7,0.0103652]
[1768978347484,9.38358502,2978.2,2977.8,0.002]
[1768978347485,0.9384585,2978.1,2977.8,0.002]
[1768978347992,0.554,2978.2,2977.8,0.002]
[1768978348157,0.554,2978.2,2977.8,0.557]
[1768978348357,9.38358502,2978.2,2977.8,0.557]
[1768978350087,8.82958502,2978.2,2977.8,0.557]
[1768978350271,9.38358502,2978.2,2977.8,0.557]
[1768978350571,10.32204352,2978.2,2977.8,0.557]
[1768978350765,10.32204352,2978.2,2977.8,1.112]
[1768978353292,10.32204352,2978.2,2977.8,1.667]
[1768978355795,10.32204352,2978.2,2977.8,2.222]
[1768978358991,10.32204352,2978.2,2977.8,2.777]
[1768978359494,0.001,2978.0,2977.8,2.777]
[1768978360229,9.71264352,2977.9,2977.3,0.555]
[1768978360506,8.82958502,2977.5,2977.2,1.11]
[1768978361681,8.82958502,2977.5,2977.2,1.665]
[1768978362366,8.82958502,2977.5,2977.1,0.555]
[1768978364080,8.82958502,2977.5,2977.1,1.11]
[1768978365365,9.26672784,2977.9,2977.2,2.1744255]
[1768978365600,0.84867114,2977.8,2977.2,2.1744255]
[1768978365773,9.82072784,2977.8,2977.2,2.1744255]
[1768978365978,0.554,2977.8,2977.2,2.1744255]
[1768978366627,8.9470415,2978.0,2977.3,2.15893511]
[1768978366902,0.001,2978.0,2977.5,2.15893511]
[1768978368879,0.001,2978.0,2977.6,2.13120522]
[1768978369910,8.9470415,2978.0,2977.6,2.13120522]
[1768978371294,8.9470415,2978.0,2977.6,2.68620522]
[1768978373831,8.9470415,2978.0,2977.6,3.24120522]
[1768978376235,8.9470415,2978.0,2977.6,3.79620522]
[1768978377827,8.9470415,2978.0,2977.6,1.665]
[1768978379139,8.9470415,2978.0,2977.6,2.22]
[1768978381741,9.89714565,2978.0,2977.6,2.775]
[1768978382736,8.9470415,2978.0,2977.6,2.775]
[1768978383238,0.001,2977.8,2977.6,2.775]
[1768978384120,0.001,2977.8,2977.6,3.33]
[1768978386557,0.001,2977.8,2977.6,5.78427479]
[1768978387546,0.001,2977.8,2977.6,3.885]
[1768978388635,8.9470415,2977.8,2977.6,3.885]
[1768978389041,8.9460415,2977.7,2977.6,4.44]
[1768978389225,8.9460415,2977.7,2977.6,1.07670628]
[1768978389621,8.9460415,2977.7,2977.6,1e-08]
[1768978390315,9.84074565,2977.7,2977.5,0.557]
[1768978390510,10.39474565,2977.7,2977.3,0.002]
[1768978390939,10.39474565,2977.7,2977.2,0.555]
[1768978391138,8.9460415,2977.5,2977.2,0.555]
[1768978391358,8.9460415,2977.5,2977.1,1.11]
[1768978393660,8.9460415,2977.5,2977.1,1.665]
[1768978394157,10.39474565,2977.7,2977.1,3.86877683]
[1768978394362,9.5000415,2977.6,2977.2,2.20377683]
[1768978395134,9.5000415,2977.6,2977.1,4.58007531]
[1768978395851,9.5010415,2977.6,2977.1,4.58007531]
[1768978396038,9.5010415,2977.6,2977.2,2.17506973]
[1768978396638,9.5010415,2977.6,2977.1,4.38370424]
[1768978397157,0.555,2977.6,2977.2,2.16370424]
[1768978397470,0.33060877,2977.6,2977.2,2.16370424]
[1768978397671,8.59054353,2977.6,2977.2,2.16370424]
[1768978398290,0.33060877,2977.6,2977.2,2.60207466]
[1768978398438,0.33060877,2977.6,2977.3,2.14492539]
[1768978399547,0.33060877,2977.6,2977.2,3.12714888]
[1768978399867,8.59054353,2977.6,2977.2,3.12714888]
[1768978400038,8.59054353,2977.6,2977.2,2.68877846]
[1768978401174,8.59054353,2977.6,2977.2,3.24377846]
[1768978401979,8.59054353,2977.6,2977.2,1.11]
[1768978402875,8.59054353,2977.6,2977.2,3.210782]
[1768978403477,8.59054353,2977.6,2977.2,1.11]
[1768978403674,8.25993476,2977.4,2977.2,1.665]
[1768978403875,0.04198152,2977.5,2977.2,1.665]
[1768978403876,6.13426812,2977.3,2977.2,1.665]
[1768978406259,6.13426812,2977.3,2977.2,2.22]
[1768978406656,8.26093476,2977.6,2977.2,2.22]
[1768978406967,8.81393476,2977.5,2977.2,2.22]
[1768978407360,8.81393476,2977.5,2977.4,0.002]
[1768978407572,8.81393476,2977.5,2977.2,2.22]
[1768978407746,8.30184021,2977.4,2977.2,2.22]
[1768978407956,8.81393476,2977.5,2977.2,2.22]
[1768978408394,0.47515579,2977.5,2977.2,6.41811996]
[1768978408599,0.59690545,2977.6,2977.2,6.41811996]
[1768978408774,0.59690545,2977.6,2977.2,6.97311996]
[1768978408974,8.85684021,2977.6,2977.2,6.97311996]
[1768978409200,0.555,2977.6,2977.3,4.19811996]
[1768978410102,0.001,2977.6,2977.3,4.19811996]
[1768978411174,0.001,2977.6,2977.3,4.75311996]
[1768978412486,8.26093476,2977.8,2977.3,4.75311996]
[1768978412487,0.001,2977.8,2977.4,4.15137154]
[1768978412681,0.001,2977.8,2977.5,5.11009574]
[1768978413804,0.001,2977.8,2977.5,1.5137242]
[1768978414178,8.26093476,2977.8,2977.5,1.5137242]
[1768978414900,8.26093476,2977.8,2977.5,0.555]
[1768978416077,8.26093476,2977.8,2977.5,1.11]
[1768978416327,0.001,2977.8,2977.6,4.11622765]
[1768978416478,0.001,2977.8,2977.5,1.11]
[1768978416678,0.001,2977.8,2977.5,5.21467141]
[1768978416980,0.001,2977.8,2977.5,6.12750811]
[1768978417200,0.001,2977.8,2977.5,2.0228367]
[1768978419415,0.001,2977.6,2977.5,2.5778367]
[1768978421974,0.001,2977.8,2977.5,3.1328367]
[1768978422176,0.001,2977.8,2977.6,4.04808343]
[1768978422380,0.001,2977.8,2977.6,5.10539137]
[1768978422782,0.001,2977.8,2977.6,1.05730794]
[1768978422994,0.001,2977.8,2977.6,5.09430694]
[1768978423188,0.001,2977.8,2977.6,1.05730794]
[1768978423594,0.001,2978.0,2977.7,4.02600709]
[1768978423807,0.554,2978.2,2977.8,4.02600709]
[1768978424008,0.001,2978.3,2977.8,4.02600709]
[1768978424397,0.001,2978.3,2977.8,4.58100709]
[1768978424811,0.554,2979.0,2978.0,4.01509032]
[1768978424998,8.25993476,2978.9,2978.0,4.01509032]
[1768978425189,0.554,2979.0,2978.3,4.00426455]
[1768978425511,9.40878303,2979.0,2978.3,4.00426455]
[1768978425689,9.36687758,2979.0,2978.3,4.00426455]
[1768978425884,0.04190545,2978.9,2978.3,4.00426455]
[1768978426295,8.75682253,2978.8,2978.3,4.00426455]
[1768978426485,9.69209533,2978.8,2978.3,4.00426455]
[1768978427187,9.69209533,2978.8,2978.3,4.55926455]
[1768978427818,9.69369533,2978.8,2978.3,4.55926455]
[1768978429488,9.69369533,2978.8,2978.3,5.11426455]
[1768978430722,9.69369533,2978.8,2978.3,1.11]
[1768978430922,8.75682253,2978.6,2978.3,1.11]
[1768978431219,8.75782253,2978.6,2978.3,1.11]
[1768978431794,8.75782253,2978.6,2978.3,1.665]
[1768978432117,0.001,2978.6,2978.4,3.93116332]
[1768978432520,0.001,2978.6,2978.3,1.665]
[1768978432691,8.75782253,2978.6,2978.3,1.665]
[1768978433409,0.001,2978.6,2978.3,1.665]
[1768978433610,0.001,2978.6,2978.3,5.57573238]
[1768978434322,0.001,2978.6,2978.3,6.13073238]
[1768978435192,0.001,2978.6,2978.3,6.12913238]
[1768978435392,0.001,2978.6,2978.4,3.89056902]
[1768978436025,8.75782253,2978.6,2978.3,2.2184]
[1768978436606,8.75782253,2978.6,2978.3,2.7734]
[1768978437216,9.63360478,2978.6,2978.3,2.7734]
[1768978439027,8.75782253,2978.6,2978.3,3.3284]
[1768978439222,8.75702253,2978.6,2978.3,3.3284]
[1768978440228,9.31102253,2978.6,2978.3,3.3284]
[1768978441225,9.31022253,2978.6,2978.3,3.3284]
[1768978441433,9.31022253,2978.6,2978.3,3.8834]
[1768978442632,8.75682253,2978.8,2978.3,7.70608352]
[1768978442806,8.75682253,2978.8,2978.4,3.82268352]
[1768978443417,0.001,2978.6,2978.4,3.82268352]
[1768978444113,0.001,2978.6,2978.4,4.37768352]
[1768978445305,8.75622253,2978.8,2978.4,4.37768352]
[1768978446033,0.554,2978.9,2978.4,4.37768352]
[1768978446729,8.75682253,2979.0,2978.5,3.78550657]
[1768978446903,4.88087045,2979.6,2978.5,3.78550657]
[1768978446904,9.31082253,2979.2,2978.5,3.78550657]
[1768978447104,8.79872798,2979.1,2978.5,3.78550657]
[1768978447299,8.75682253,2979.1,2978.5,3.78470657]
[1768978448021,8.75682253,2979.1,2978.4,2.27188093]
[1768978448226,8.83766673,2978.4,2978.3,3.8834]
[1768978448413,8.83766673,2978.4,2977.8,0.555]
[1768978449137,8.83766673,2978.4,2977.8,5.39707203]
[1768978449332,8.83766673,2978.4,2977.8,5.39627203]
[1768978449537,8.83766673,2978.4,2977.8,1.1092]
[1768978449705,9.7214334,2978.4,2977.8,1.1092]
[1768978450523,8.75682253,2978.2,2977.8,1.1092]
[1768978451763,8.75682253,2978.2,2977.8,1.6642]
[1768978454149,8.75682253,2978.2,2977.8,2.2192]
[1768978455108,8.75682253,2978.2,2978.0,0.002]
[1768978455311,8.75682253,2978.2,2977.8,2.2192]
[1768978455522,8.75682253,2978.2,2977.8,2.2212]
[1768978456760,8.75682253,2978.2,2977.8,7.07197112]
[1768978457142,8.75682253,2978.2,2977.8,2.7762]
[1768978459151,8.75682253,2978.2,2977.8,3.3312]
[1768978459646,8.75682253,2978.2,2977.8,7.60193342]
[1768978459849,8.75682253,2978.2,2977.8,8.36212676]
[1768978460213,8.75682253,2978.2,2977.8,3.3312]
[1768978461431,8.75682253,2978.2,2977.8,3.8862]
[1768978464157,8.75682253,2978.2,2977.8,4.4412]
[1768978466560,8.75682253,2978.2,2977.8,4.9962]
[1768978467347,8.75682253,2978.2,2978.0,0.002]
[1768978468861,8.75682253,2978.2,2978.0,0.557]
[1768978471443,8.75682253,2978.2,2978.0,1.112]
[1768978473766,8.75682253,2978.2,2978.0,1.667]
[1768978476168,8.75682253,2978.2,2978.0,2.222]
[1768978478636,0.554,2978.3,2978.0,2.777]
[1768978478841,9.01179403,2978.3,2978.0,2.777]
[1768978479235,8.45779403,2978.3,2978.0,2.777]
[1768978479548,9.01179403,2978.5,2978.0,6.8909952]
[1768978479749,9.7591738,2978.5,2978.0,2.777]
[1768978481180,9.01179403,2978.5,2978.0,6.88359099]
[1768978481366,8.45779403,2978.5,2978.1,4.10659099]
[1768978481872,0.555,2978.6,2978.1,4.10659099]
[1768978481873,0.001,2978.6,2978.1,4.10659099]
[1768978483355,0.001,2978.6,2978.2,4.09189803]
[1768978483782,0.001,2978.6,2978.2,4.64689803]
[1768978484371,0.001,2978.6,2978.3,4.0846086]
[1768978486177,0.001,2978.6,2978.3,4.6396086]
[1768978488883,0.001,2978.6,2978.3,5.1946086]
[1768978491049,0.001,2978.4,2978.3,5.1946086]
[1768978491249,0.001,2978.4,2978.3,5.7496086]
[1768978491482,0.001,2978.4,2978.3,6.54893686]
[1768978492882,0.001,2978.4,2978.3,6.48113893]
[1768978493255,0.001,2978.4,2978.3,2.46432826]
[1768978493453,0.001,2978.4,2978.3,1.665]
[1768978493654,0.001,2978.4,2978.3,2.22]
[1768978495454,0.554,2978.9,2978.4,4.00207778]
[1768978496061,8.43428985,2978.9,2978.4,4.55707778]
[1768978496669,7.88028985,2979.5,2978.5,3.98851291]
[1768978496990,7.88028985,2979.2,2978.5,3.98851291]
[1768978498283,7.88028985,2979.2,2978.6,3.98176366]
[1768978500597,7.88028985,2979.2,2978.6,7.37258123]
[1768978500762,7.88028985,2979.2,2978.7,3.96171399]
[1768978501590,8.72371883,2979.2,2978.6,0.555]
[1768978502191,7.88028985,2979.0,2978.6,0.555]
[1768978502495,7.88028985,2978.8,2978.6,0.555]
[1768978502695,0.04190545,2978.9,2978.5,0.555]
[1768978502696,7.88028985,2978.6,2978.5,0.555]
[1768978502881,8.67250938,2978.6,2978.5,2e-08]
[1768978503089,8.67250938,2978.6,2978.3,2.22]
[1768978503270,8.67250938,2978.6,2978.5,1e-08]
[1768978504364,7.88028985,2978.6,2978.5,1e-08]
[1768978504567,8.43428985,2978.9,2978.5,1e-08]
[1768978505892,0.001,2979.0,2978.5,5.0756589]
[1768978506097,7.88128985,2979.0,2978.5,5.0756589]
[1768978506607,0.001,2979.0,2978.7,4.51410496]
[1768978507700,7.88028985,2979.9,2978.9,4.50758179]
[1768978507997,7.88028985,2979.7,2978.9,4.50758179]
[1768978508368,7.88028985,2979.7,2979.0,4.50758179]
[1768978508670,7.88028985,2979.9,2979.2,4.50031065]
[1768978508876,7.88028985,2979.9,2979.2,5.05531065]
[1768978510100,7.88028985,2979.7,2979.3,0.555]
[1768978510468,7.88028985,2979.7,2979.1,4.49306227]
[1768978510709,7.88028985,2979.7,2979.2,5.04085293]
[1768978513707,7.88028985,2979.7,2979.2,5.59585293]
[1768978514303,7.88028985,2979.7,2979.3,4.4644557]
[1768978514488,7.88028985,2980.2,2979.3,4.4644557]
[1768978515413,0.001,2979.5,2979.3,4.4644557]
[1768978515802,8.04347015,2979.9,2979.2,5.08168897]
[1768978515973,8.04347015,2979.9,2979.3,5.49979798]
[1768978518613,8.04347015,2979.9,2979.4,4.42746087]
[1768978520073,0.555,2980.3,2979.4,4.42746087]
[1768978520074,8.04347015,2980.2,2979.4,4.42746087]
[1768978520278,8.04447015,2980.3,2979.5,4.4206118]
[1768978520583,8.04447015,2980.3,2979.7,4.4206118]
[1768978520988,8.04447015,2980.3,2979.7,4.9756118]
[1768978521197,0.001,2980.3,2979.7,4.9756118]
[1768978521824,8.04447015,2980.3,2979.7,0.555]
[1768978522016,8.04447015,2980.3,2979.8,0.554]
[1768978522215,8.04347015,2980.1,2979.8,0.554]
[1768978522526,8.04347015,2980.1,2979.7,0.555]
[1768978523084,8.04347015,2980.1,2979.7,4.9552761]
[1768978523292,8.04347015,2980.1,2979.7,5.5102761]
[1768978523531,8.04347015,2980.1,2979.7,6.0642761]
[1768978523719,8.04447015,2980.3,2979.8,4.39356703]
[1768978524353,8.04447015,2980.3,2979.7,6.05756703]
[1768978525721,8.04447015,2980.3,2979.7,6.61256703]
[1768978527817,0.001,2980.1,2979.7,6.61256703]
[1768978528025,8.04002419,2980.2,2979.7,7.27382373]
[1768978528321,8.04002419,2980.2,2979.7,7.16756703]
[1768978529122,8.04002419,2980.2,2979.7,2.774]
[1768978530794,8.04002419,2980.2,2979.7,3.329]
[1768978531895,8.04002419,2980.2,2979.7,2.775]
[1768978532097,8.04347015,2980.0,2979.3,0.555]
[1768978532329,8.04347015,2980.0,2979.5,0.554]
[1768978532330,8.85200771,2980.0,2979.5,0.554]
[1768978533213,8.85200771,2980.0,2979.5,0.555]
[1768978536051,8.85200771,2980.0,2979.5,1.11]
[1768978536253,8.04347015,2980.0,2979.5,1.11]
[1768978538433,8.04347015,2980.0,2979.5,1.665]
[1768978539534,8.04347015,2980.0,2979.7,0.002]
[1768978539722,0.001,2979.8,2979.7,0.002]
[1768978540816,0.001,2979.8,2979.7,0.557]
[1768978543223,0.001,2979.8,2979.7,1.112]
[1768978546273,0.001,2979.8,2979.7,1.667]
[1768978548782,0.001,2979.8,2979.7,2.222]
[1768978551883,0.001,2979.8,2979.7,2.777]
[1768978552381,0.001,2980.3,2979.7,2.777]
[1768978552382,8.09882796,2980.2,2979.7,9.79268956]
[1768978552552,8.09982796,2980.3,2979.8,7.01568956]
[1768978553539,8.09982796,2980.3,2979.8,7.56968956]
[1768978553781,8.09982796,2980.3,2979.9,7.00154262]
[1768978554400,8.09982796,2980.3,2979.9,7.55654262]
[1768978555554,8.09982796,2980.3,2979.9,0.555]
[1768978557042,8.09982796,2980.3,2979.9,1.11]
[1768978557562,8.09982796,2980.3,2979.9,8.0836945]
[1768978559603,0.001,2980.3,2979.9,8.6386945]
[1768978561403,0.001,2980.3,2980.0,6.95321624]
[1768978561774,0.001,2980.3,2979.9,10.14402697]
[1768978561973,0.001,2980.3,2979.9,10.69902697]
[1768978562587,0.001,2980.3,2980.0,6.939753]
[1768978563911,0.001,2980.3,2980.0,6.93307703]
[1768978564105,0.001,2980.3,2980.0,7.81453718]
[1768978564440,0.001,2980.3,2980.0,8.36953718]
[1768978564709,0.001,2980.1,2980.0,8.36953718]
[1768978566012,8.09882796,2980.4,2980.0,8.36953718]
[1768978566214,8.09882796,2980.4,2980.0,1.43646015]
[1768978566615,8.09882796,2980.4,2980.0,1.99146015]
[1768978568327,8.09882796,2980.4,2980.0,1.11]
[1768978569116,0.554,2980.8,2980.1,6.90027351]
[1768978569302,8.09882796,2980.7,2980.1,6.90027351]
[1768978569891,8.09882796,2980.7,2980.0,11.91451717]
[1768978570690,8.09882796,2980.7,2980.0,11.91451056]
[1768978570892,8.09882796,2980.7,2980.1,1.41345106]
[1768978571585,8.09882796,2980.7,2980.1,1.96845106]
[1768978574097,8.09882796,2980.7,2980.1,2.52345106]
[1768978574624,8.09882796,2980.7,2980.1,9.38547298]
[1768978575020,8.09882796,2980.7,2980.1,2.52345106]
[1768978575321,8.09882796,2980.7,2980.1,1.664]
[1768978576121,7.97888663,2980.6,2980.1,1.11]
[1768978576319,7.93698118,2980.6,2980.1,1.11]
[1768978576525,7.93698118,2980.6,2980.1,1.665]
[1768978576697,9.21796897,2980.6,2980.1,1.665]
[1768978577294,9.21796897,2980.6,2980.2,0.002]
[1768978577492,0.001,2980.5,2980.2,0.002]
[1768978577714,7.93698118,2980.4,2980.2,0.002]
[1768978578995,7.93698118,2980.4,2980.2,0.557]
[1768978581818,7.93698118,2980.4,2980.2,1.112]
[1768978584305,7.93698118,2980.4,2980.2,1.667]
[1768978586729,7.93698118,2980.4,2980.2,2.222]
[1768978589405,7.93698118,2980.4,2980.2,2.777]
[1768978591839,7.93698118,2980.4,2980.2,3.332]
[1768978594212,7.93798118,2980.5,2980.2,3.332]
[1768978594410,7.93798118,2980.5,2980.2,3.887]
[1768978596915,7.93798118,2980.5,2980.2,4.442]
[1768978599342,7.93798118,2980.5,2980.2,4.997]
[1768978602154,0.001,2980.3,2980.2,4.997]
[1768978602323,0.001,2980.3,2980.2,5.552]
[1768978603741,8.1015101,2980.3,2980.2,5.552]
[1768978604123,0.001,2980.3,2980.2,5.552]
[1768978604823,0.001,2980.3,2980.2,6.107]
[1768978607462,0.001,2980.3,2980.2,6.662]